fUSD/lending_fUSD_20260531
["ID","MTS","AMOUNT","RATE_DAILY","PERIOD"]
[423493798,1780164637000,-500.0,0.00010999,2]
[423493800,1780164637000,-500.0,0.00010999,2]
[423493801,1780164637000,-500.0,0.00010999,2]
[423493799,1780164637000,-500.0,0.00010999,2]
[423493834,1780164638000,-500.0,0.00012275,2]
[423493835,1780164638000,-150.0,0.00012275,2]
[423493833,1780164638000,-500.0,0.00012275,2]
[423493831,1780164638000,-500.0,0.00012275,2]
[423493832,1780164638000,-150.0,0.00012275,2]
[423493837,1780164638000,-500.0,0.00012275,2]
[423493836,1780164638000,-500.0,0.00012275,2]
[423493838,1780164638000,-150.0,0.00012275,2]
[423493840,1780164638000,-500.0,0.00012275,2]
[423493839,1780164638000,-500.0,0.00012275,2]
[423493841,1780164638000,-500.0,0.00012275,2]
[423493846,1780164638000,-150.0,0.00012275,2]
[423493830,1780164638000,-500.0,0.00012275,2]
[423493848,1780164638000,-500.0,0.00012275,2]
[423493847,1780164638000,-500.0,0.00012275,2]
[423493845,1780164638000,-500.0,0.00012275,2]
[423493850,1780164638000,-500.0,0.00012275,2]
[423493851,1780164638000,-500.0,0.00012275,2]
[423493852,1780164638000,-500.0,0.00012275,2]
[423493849,1780164638000,-250.0,0.00012275,2]
[423493853,1780164638000,-500.0,0.00012275,2]
[423493855,1780164638000,-155.23146421,0.00012275,2]
[423493854,1780164638000,-500.0,0.00012275,2]
[423493844,1780164638000,-500.0,0.00012275,2]
[423493829,1780164638000,-500.0,0.00012275,2]
[423493815,1780164638000,-150.0,0.00012275,2]
[423493827,1780164638000,-500.0,0.00012275,2]
[423493802,1780164638000,-500.0,0.00010999,2]
[423493804,1780164638000,-289.9481266,0.00010999,2]
[423493803,1780164638000,-500.0,0.00010999,2]
[423493805,1780164638000,-500.0,0.00010999,2]
[423493806,1780164638000,-500.0,0.00010999,2]
[423493807,1780164638000,-500.0,0.00010999,2]
[423493809,1780164638000,-274.88,0.00012186,2]
[423493812,1780164638000,-749.84646836,0.00012266,2]
[423493811,1780164638000,-274.88,0.0001225,2]
[423493808,1780164638000,-1388296.53202792,0.00012166,2]
[423493810,1780164638000,-159.94,0.00012249,2]
[423493813,1780164638000,-1048.69259149,0.00012274,2]
[423493857,1780164638000,-500.0,0.00012275,2]
[423493816,1780164638000,-150.0,0.00012275,2]
[423493817,1780164638000,-150.0,0.00012275,2]
[423493814,1780164638000,-150.0,0.00012275,2]
[423493818,1780164638000,-150.0,0.00012275,2]
[423493820,1780164638000,-275.39800743,0.00012275,2]
[423493821,1780164638000,-500.0,0.00012275,2]
[423493819,1780164638000,-250.0,0.00012275,2]
[423493824,1780164638000,-500.0,0.00012275,2]
[423493823,1780164638000,-500.0,0.00012275,2]
[423493822,1780164638000,-500.0,0.00012275,2]
[423493825,1780164638000,-500.0,0.00012275,2]
[423493826,1780164638000,-500.0,0.00012275,2]
[423493828,1780164638000,-500.0,0.00012275,2]
[423493858,1780164638000,-632.91659185,0.00012275,2]
[423493843,1780164638000,-150.0,0.00012275,2]
[423493856,1780164638000,-500.0,0.00012275,2]
[423493894,1780164638000,-151.0,0.00012647,2]
[423493891,1780164638000,-151.0,0.00012647,2]
[423493890,1780164638000,-274.88,0.00012636,2]
[423493892,1780164638000,-151.0,0.00012647,2]
[423493893,1780164638000,-151.0,0.00012647,2]
[423493895,1780164638000,-151.0,0.00012647,2]
[423493897,1780164638000,-13000.0,0.000127,4]
[423493896,1780164638000,-151.0,0.00012647,2]
[423493899,1780164638000,-274.88,0.00012765,2]
[423493898,1780164638000,-274.88,0.000127,2]
[423493901,1780164638000,-500.0,0.00012824,2]
[423493900,1780164638000,-17400.0,0.000128,4]
[423493904,1780164638000,-209.12966642,0.00013002,2]
[423493902,1780164638000,-274.88,0.00012829,2]
[423493903,1780164638000,-21700.0,0.000129,4]
[423493905,1780164638000,-500.0,0.00013098,2]
[423493907,1780164638000,-243.896559,0.00013425,2]
[423493906,1780164638000,-500.0,0.00013372,2]
[423493909,1780164638000,-433.0,0.00013438,2]
[423493908,1780164638000,-163.06,0.00013436,2]
[423493912,1780164638000,-2351.0,0.00013583,2]
[423493914,1780164638000,-150.34604901,0.00013636,2]
[423493910,1780164638000,-707.43829243,0.00013499,2]
[423493913,1780164638000,-150.0,0.00013636,2]
[423493911,1780164638000,-587.0,0.0001355,2]
[423493889,1780164638000,-2000.0,0.00012635,2]
[423493885,1780164638000,-204.89987103,0.000126,2]
[423493859,1780164638000,-500.0,0.00012276,2]
[423493888,1780164638000,-159.94,0.00012632,2]
[423493887,1780164638000,-1600.0,0.00012607,2]
[423493860,1780164638000,-6185.7687465,0.0001228,2]
[423493861,1780164638000,-255.0,0.00012281,2]
[423493862,1780164638000,-274.88,0.00012315,2]
[423493863,1780164638000,-163.06,0.00012316,2]
[423493864,1780164638000,-361.78934864,0.00012327,2]
[423493865,1780164638000,-218.46,0.00012329,2]
[423493870,1780164638000,-12992.60621863,0.00012432,2]
[423493872,1780164638000,-6819.31498358,0.0001245,2]
[423493868,1780164638000,-1680.0,0.00012349,2]
[423493869,1780164638000,-274.88,0.00012379,2]
[423493871,1780164638000,-274.88,0.00012443,2]
[423493866,1780164638000,-420.0,0.00012333,2]
[423493876,1780164638000,-274.88,0.00012507,2]
[423493873,1780164638000,-13345.59120555,0.00012472,2]
[423493884,1780164638000,-1302.51104043,0.000126,2]
[423493882,1780164638000,-274.88,0.00012572,2]
[423493879,1780164638000,-150.0,0.0001255,7]
[423493881,1780164638000,-1500000.0,0.0001255,2]
[423493880,1780164638000,-2000.0,0.0001255,2]
[423493886,1780164638000,-9570.10769658,0.000126,2]
[423493878,1780164638000,-500.0,0.0001255,2]
[423493877,1780164638000,-2899.32,0.00012521,2]
[423493875,1780164638000,-4300.0,0.000125,4]
[423493874,1780164638000,-10298.19396021,0.00012472,2]
[423493883,1780164638000,-8700.0,0.000126,4]
[423493954,1780164639000,-500.0,0.00013698,2]
[423493953,1780164639000,-500.0,0.00013698,2]
[423493951,1780164639000,-500.0,0.00013698,2]
[423493952,1780164639000,-500.0,0.00013698,2]
[423493944,1780164639000,-500.0,0.00013698,2]
[423493948,1780164639000,-500.0,0.00013698,2]
[423493947,1780164639000,-419.13,0.00013698,2]
[423493949,1780164639000,-500.0,0.00013698,2]
[423493946,1780164639000,-500.0,0.00013698,2]
[423493955,1780164639000,-500.0,0.00013698,2]
[423493950,1780164639000,-500.0,0.00013698,2]
[423493957,1780164639000,-500.0,0.00013698,2]
[423493971,1780164639000,-500.0,0.00013698,2]
[423493956,1780164639000,-500.0,0.00013698,2]
[423493962,1780164639000,-500.0,0.00013698,2]
[423493961,1780164639000,-500.0,0.00013698,2]
[423493959,1780164639000,-500.0,0.00013698,2]
[423493960,1780164639000,-416.10004967,0.00013698,2]
[423493963,1780164639000,-500.0,0.00013698,2]
[423493965,1780164639000,-500.0,0.00013698,2]
[423493967,1780164639000,-500.0,0.00013698,2]
[423493964,1780164639000,-500.0,0.00013698,2]
[423493966,1780164639000,-500.0,0.00013698,2]
[423493968,1780164639000,-500.0,0.00013698,2]
[423493945,1780164639000,-500.0,0.00013698,2]
[423493958,1780164639000,-500.0,0.00013698,2]
[423493943,1780164639000,-500.0,0.00013698,2]
[423493930,1780164639000,-500.0,0.00013698,2]
[423493940,1780164639000,-500.0,0.00013698,2]
[423493969,1780164639000,-500.0,0.00013698,2]
[423493915,1780164639000,-150.0,0.00013636,2]
[423493917,1780164639000,-150.0,0.00013636,2]
[423493918,1780164639000,-150.0,0.00013636,2]
[423493919,1780164639000,-150.0,0.00013636,2]
[423493920,1780164639000,-150.0,0.00013636,2]
[423493921,1780164639000,-150.0,0.00013636,2]
[423493922,1780164639000,-150.0,0.00013669,2]
[423493926,1780164639000,-500.0,0.00013698,2]
[423493925,1780164639000,-500.0,0.00013698,2]
[423493924,1780164639000,-500.0,0.00013698,2]
[423493927,1780164639000,-500.0,0.00013698,2]
[423493923,1780164639000,-500.0,0.00013698,2]
[423493928,1780164639000,-500.0,0.00013698,2]
[423493929,1780164639000,-500.0,0.00013698,2]
[423493931,1780164639000,-500.0,0.00013698,2]
[423493932,1780164639000,-500.0,0.00013698,2]
[423493933,1780164639000,-500.0,0.00013698,2]
[423493936,1780164639000,-500.0,0.00013698,2]
[423493934,1780164639000,-500.0,0.00013698,2]
[423493938,1780164639000,-500.0,0.00013698,2]
[423493935,1780164639000,-500.0,0.00013698,2]
[423493937,1780164639000,-500.0,0.00013698,2]
[423493939,1780164639000,-500.0,0.00013698,2]
[423493942,1780164639000,-500.0,0.00013698,2]
[423493941,1780164639000,-500.0,0.00013698,2]
[423493916,1780164639000,-150.0,0.00013636,2]
[423493974,1780164639000,-500.0,0.00013698,2]
[423493970,1780164639000,-500.0,0.00013698,2]
[423494003,1780164639000,-840.36,0.00013698,2]
[423494008,1780164639000,-840.36,0.00013698,2]
[423494005,1780164639000,-840.36,0.00013698,2]
[423494006,1780164639000,-840.36,0.00013698,2]
[423494004,1780164639000,-840.36,0.00013698,2]
[423494007,1780164639000,-840.36,0.00013698,2]
[423494009,1780164639000,-840.36,0.00013698,2]
[423494011,1780164639000,-840.36,0.00013698,2]
[423494010,1780164639000,-840.36,0.00013698,2]
[423494012,1780164639000,-840.36,0.00013698,2]
[423494013,1780164639000,-840.36,0.00013698,2]
[423494017,1780164639000,-840.36,0.00013698,2]
[423494014,1780164639000,-840.36,0.00013698,2]
[423494015,1780164639000,-840.36,0.00013698,2]
[423494022,1780164639000,-342.52037554,0.00013698,2]
[423494023,1780164639000,-500.0,0.00013698,2]
[423494019,1780164639000,-840.36,0.00013698,2]
[423494021,1780164639000,-840.36,0.00013698,2]
[423494024,1780164639000,-500.0,0.00013698,2]
[423494028,1780164639000,-1842.0,0.00013699,2]
[423494025,1780164639000,-500.0,0.00013698,2]
[423494026,1780164639000,-200.0,0.00013699,2]
[423494027,1780164639000,-187.71242717,0.00013699,10]
[423494030,1780164639000,-1842.0,0.00013699,2]
[423494031,1780164639000,-1842.0,0.00013699,2]
[423494001,1780164639000,-301.80996815,0.00013698,2]
[423494002,1780164639000,-840.36,0.00013698,2]
[423494029,1780164639000,-1842.0,0.00013699,2]
[423493997,1780164639000,-500.0,0.00013698,2]
[423494000,1780164639000,-500.0,0.00013698,2]
[423493973,1780164639000,-500.0,0.00013698,2]
[423493975,1780164639000,-500.0,0.00013698,2]
[423493977,1780164639000,-500.0,0.00013698,2]
[423493976,1780164639000,-500.0,0.00013698,2]
[423493978,1780164639000,-500.0,0.00013698,2]
[423493980,1780164639000,-407.88275073,0.00013698,2]
[423493983,1780164639000,-500.0,0.00013698,2]
[423493982,1780164639000,-500.0,0.00013698,2]
[423493981,1780164639000,-500.0,0.00013698,2]
[423493984,1780164639000,-500.0,0.00013698,2]
[423493985,1780164639000,-500.0,0.00013698,2]
[423493979,1780164639000,-500.0,0.00013698,2]
[423493972,1780164639000,-156.8613884,0.00013698,2]
[423493989,1780164639000,-500.0,0.00013698,2]
[423493986,1780164639000,-500.0,0.00013698,2]
[423493999,1780164639000,-500.0,0.00013698,2]
[423493991,1780164639000,-500.0,0.00013698,2]
[423493996,1780164639000,-500.0,0.00013698,2]
[423493993,1780164639000,-500.0,0.00013698,2]
[423493998,1780164639000,-500.0,0.00013698,2]
[423493992,1780164639000,-500.0,0.00013698,2]
[423493994,1780164639000,-500.0,0.00013698,2]
[423493990,1780164639000,-549.93789521,0.00013698,2]
[423493988,1780164639000,-500.0,0.00013698,2]
[423493987,1780164639000,-500.0,0.00013698,2]
[423493995,1780164639000,-500.0,0.00013698,2]
[423494061,1780164640000,-527.06909392,0.00013699,2]
[423494062,1780164640000,-527.06909392,0.00013699,2]
[423494063,1780164640000,-527.06909392,0.00013699,2]
[423494066,1780164640000,-527.06909392,0.00013699,2]
[423494069,1780164640000,-527.06909392,0.00013699,2]
[423494065,1780164640000,-527.06909392,0.00013699,2]
[423494064,1780164640000,-527.06909392,0.00013699,2]
[423494067,1780164640000,-527.06909392,0.00013699,2]
[423494068,1780164640000,-527.06909392,0.00013699,2]
[423494070,1780164640000,-527.06909392,0.00013699,2]
[423494075,1780164640000,-527.06909392,0.00013699,2]
[423494073,1780164640000,-527.06909392,0.00013699,2]
[423494072,1780164640000,-527.06909392,0.00013699,2]
[423494074,1780164640000,-527.06909392,0.00013699,2]
[423494079,1780164640000,-527.06909392,0.00013699,2]
[423494060,1780164640000,-527.06909392,0.00013699,2]
[423494076,1780164640000,-527.06909392,0.00013699,2]
[423494080,1780164640000,-527.06909392,0.00013699,2]
[423494077,1780164640000,-527.06909392,0.00013699,2]
[423494078,1780164640000,-527.06909392,0.00013699,2]
[423494081,1780164640000,-527.06909392,0.00013699,2]
[423494082,1780164640000,-527.06909392,0.00013699,2]
[423494083,1780164640000,-527.06909392,0.00013699,2]
[423494071,1780164640000,-527.06909392,0.00013699,2]
[423494059,1780164640000,-527.06909392,0.00013699,2]
[423494051,1780164640000,-1843.82970576,0.00013699,2]
[423494058,1780164640000,-527.06909392,0.00013699,2]
[423494084,1780164640000,-527.06909392,0.00013699,2]
[423494032,1780164640000,-1842.0,0.00013699,2]
[423494035,1780164640000,-1842.0,0.00013699,2]
[423494033,1780164640000,-1842.0,0.00013699,2]
[423494034,1780164640000,-1842.0,0.00013699,2]
[423494037,1780164640000,-1842.0,0.00013699,2]
[423494040,1780164640000,-1842.0,0.00013699,2]
[423494036,1780164640000,-1842.0,0.00013699,2]
[423494039,1780164640000,-1842.0,0.00013699,2]
[423494038,1780164640000,-1842.0,0.00013699,2]
[423494043,1780164640000,-1842.0,0.00013699,2]
[423494057,1780164640000,-527.06909392,0.00013699,2]
[423494041,1780164640000,-1842.0,0.00013699,2]
[423494044,1780164640000,-1842.0,0.00013699,2]
[423494045,1780164640000,-1842.0,0.00013699,2]
[423494047,1780164640000,-1842.0,0.00013699,2]
[423494049,1780164640000,-1842.0,0.00013699,2]
[423494050,1780164640000,-1842.0,0.00013699,2]
[423494048,1780164640000,-1842.0,0.00013699,2]
[423494052,1780164640000,-527.06909392,0.00013699,2]
[423494053,1780164640000,-527.06909392,0.00013699,2]
[423494054,1780164640000,-527.06909392,0.00013699,2]
[423494055,1780164640000,-527.06909392,0.00013699,2]
[423494056,1780164640000,-527.06909392,0.00013699,2]
[423494042,1780164640000,-1842.0,0.00013699,2]
[423494046,1780164640000,-1842.0,0.00013699,2]
[423494085,1780164640000,-527.06909392,0.00013699,2]
[423494091,1780164640000,-527.06909392,0.00013699,2]
[423494118,1780164640000,-150.0,0.00013804,2]
[423494120,1780164640000,-150.0,0.00013838,2]
[423494119,1780164640000,-150.0,0.00013804,2]
[423494125,1780164640000,-150.0,0.0001396,2]
[423494121,1780164640000,-150.0,0.00013852,2]
[423494124,1780164640000,-150.0,0.00013939,2]
[423494123,1780164640000,-150.0,0.00013905,2]
[423494122,1780164640000,-150.0,0.00013871,2]
[423494127,1780164640000,-150.0,0.00013972,2]
[423494126,1780164640000,-150.0,0.00013972,2]
[423494128,1780164640000,-250.0,0.00014,2]
[423494116,1780164640000,-150.0,0.00013744,2]
[423494131,1780164640000,-150.0,0.00014014,2]
[423494132,1780164640000,-2000.0,0.00014038,2]
[423494134,1780164640000,-150.0,0.00014068,2]
[423494136,1780164640000,-150.0,0.00014107,2]
[423494133,1780164640000,-150.0,0.0001404,2]
[423494135,1780164640000,-150.0,0.00014073,2]
[423494139,1780164640000,-150.0,0.00014174,2]
[423494138,1780164640000,-150.0,0.00014141,2]
[423494137,1780164640000,-150.0,0.00014141,2]
[423494141,1780164640000,-150.0,0.00014208,2]
[423494140,1780164640000,-150.0,0.00014177,2]
[423494086,1780164640000,-527.06909392,0.00013699,2]
[423494129,1780164640000,-150.0,0.00014006,2]
[423494117,1780164640000,-150.0,0.0001377,2]
[423494130,1780164640000,-1600.0,0.00014008,2]
[423494114,1780164640000,-150.0,0.00013703,2]
[423494087,1780164640000,-527.06909392,0.00013699,2]
[423494111,1780164640000,-163.28,0.000137,2]
[423494088,1780164640000,-527.06909392,0.00013699,2]
[423494090,1780164640000,-527.06909392,0.00013699,2]
[423494089,1780164640000,-527.06909392,0.00013699,2]
[423494093,1780164640000,-527.06909392,0.00013699,2]
[423494092,1780164640000,-527.06909392,0.00013699,2]
[423494095,1780164640000,-527.06909392,0.00013699,2]
[423494097,1780164640000,-527.06909392,0.00013699,2]
[423494102,1780164640000,-527.06909392,0.00013699,2]
[423494099,1780164640000,-527.06909392,0.00013699,2]
[423494096,1780164640000,-527.06909392,0.00013699,2]
[423494098,1780164640000,-527.06909392,0.00013699,2]
[423494094,1780164640000,-527.06909392,0.00013699,2]
[423494101,1780164640000,-527.06909392,0.00013699,2]
[423494115,1780164640000,-150.0,0.00013737,2]
[423494112,1780164640000,-163.44,0.000137,2]
[423494108,1780164640000,-527.06909392,0.00013699,2]
[423494109,1780164640000,-527.06909392,0.00013699,2]
[423494107,1780164640000,-527.06909392,0.00013699,2]
[423494110,1780164640000,-527.06909392,0.00013699,2]
[423494105,1780164640000,-527.06909392,0.00013699,2]
[423494104,1780164640000,-527.06909392,0.00013699,2]
[423494103,1780164640000,-527.06909392,0.00013699,2]
[423494100,1780164640000,-527.06909392,0.00013699,2]
[423494106,1780164640000,-527.06909392,0.00013699,2]
[423494181,1780164641000,-150.0,0.00014982,2]
[423494182,1780164641000,-150.0,0.00014982,2]
[423494180,1780164641000,-150.0,0.00014949,2]
[423494177,1780164641000,-150.0,0.00014915,2]
[423494175,1780164641000,-150.0,0.00014881,2]
[423494179,1780164641000,-3292.0,0.00014942,2]
[423494173,1780164641000,-150.0,0.00014826,2]
[423494178,1780164641000,-150.0,0.00014934,2]
[423494170,1780164641000,-150.0,0.0001478,2]
[423494174,1780164641000,-150.0,0.00014848,2]
[423494183,1780164641000,-500.0,0.00014999,2]
[423494176,1780164641000,-823.0,0.00014886,2]
[423494186,1780164641000,-500.0,0.00014999,2]
[423494197,1780164641000,-150.0,0.00015083,2]
[423494187,1780164641000,-500.0,0.00014999,2]
[423494185,1780164641000,-500.0,0.00014999,2]
[423494188,1780164641000,-500.0,0.00014999,2]
[423494190,1780164641000,-500.0,0.00014999,2]
[423494192,1780164641000,-500.0,0.00014999,2]
[423494189,1780164641000,-500.0,0.00014999,2]
[423494191,1780164641000,-500.0,0.00014999,2]
[423494194,1780164641000,-13345.59120549,0.00015032,2]
[423494193,1780164641000,-150.0,0.00015016,2]
[423494195,1780164641000,-150.0,0.00015042,2]
[423494196,1780164641000,-150.0,0.0001505,2]
[423494172,1780164641000,-150.0,0.00014814,2]
[423494184,1780164641000,-500.0,0.00014999,2]
[423494171,1780164641000,-150.0,0.00014814,2]
[423494145,1780164641000,-150.0,0.00014309,2]
[423494169,1780164641000,-150.0,0.00014772,2]
[423494198,1780164641000,-150.0,0.00015117,2]
[423494144,1780164641000,-150.0,0.00014285,2]
[423494147,1780164641000,-150.0,0.00014343,2]
[423494143,1780164641000,-150.0,0.00014275,2]
[423494142,1780164641000,-150.0,0.00014242,2]
[423494146,1780164641000,-150.0,0.00014309,2]
[423494149,1780164641000,-150.0,0.00014393,2]
[423494148,1780164641000,-150.0,0.00014376,2]
[423494150,1780164641000,-150.0,0.00014393,2]
[423494152,1780164641000,-150.0,0.00014444,2]
[423494151,1780164641000,-150.0,0.0001441,2]
[423494153,1780164641000,-150.0,0.00014477,2]
[423494168,1780164641000,-150.0,0.00014747,2]
[423494157,1780164641000,-150.0,0.00014545,2]
[423494155,1780164641000,-150.0,0.00014501,2]
[423494156,1780164641000,-150.0,0.00014511,2]
[423494159,1780164641000,-150.0,0.00014578,2]
[423494158,1780164641000,-163.06,0.00014556,2]
[423494160,1780164641000,-150.0,0.0001461,2]
[423494162,1780164641000,-150.0,0.00014646,2]
[423494161,1780164641000,-150.0,0.00014612,2]
[423494164,1780164641000,-150.0,0.00014679,2]
[423494163,1780164641000,-150.0,0.00014646,2]
[423494165,1780164641000,-736.0,0.00014695,2]
[423494166,1780164641000,-150.0,0.00014713,2]
[423494167,1780164641000,-150.0,0.00014718,2]
[423494154,1780164641000,-150.0,0.00014477,2]
[423494203,1780164641000,-150.0,0.00015151,2]
[423494229,1780164641000,-166.43,0.00017118,2]
[423494201,1780164641000,-150.0,0.00015151,2]
[423494231,1780164641000,-13345.59120549,0.00017592,2]
[423494233,1780164641000,-707.43829241,0.0001777,2]
[423494236,1780164641000,-350.0,0.00018,2]
[423494235,1780164641000,-1613.0,0.00017968,2]
[423494238,1780164641000,-156.1,0.0001841,2]
[423494237,1780164641000,-6453.0,0.0001808,2]
[423494234,1780164641000,-166.43,0.00017967,2]
[423494241,1780164641000,-2322.0,0.00019888,2]
[423494242,1780164641000,-209.0,0.0002,2]
[423494240,1780164641000,-833.0,0.0001974,2]
[423494239,1780164641000,-153.27997121,0.00019257,2]
[423494243,1780164641000,-215.0,0.0002,2]
[423494232,1780164641000,-163.28,0.000176,2]
[423494244,1780164641000,-329.0,0.0002,2]
[423494246,1780164641000,-360.0,0.0002,2]
[423494248,1780164641000,-705.0,0.0002,2]
[423494249,1780164641000,-184.0,0.0002,2]
[423494250,1780164641000,-209.5281568,0.0002,2]
[423494251,1780164641000,-1594.97,0.0002,2]
[423494247,1780164641000,-154.0,0.0002,2]
[423494253,1780164641000,-10298.19396019,0.00020093,2]
[423494252,1780164641000,-400.0,0.0002,2]
[423494254,1780164641000,-151.0,0.00020103,2]
[423494256,1780164641000,-151.0,0.00020103,2]
[423494255,1780164641000,-151.0,0.00020103,2]
[423494257,1780164641000,-151.0,0.00020103,2]
[423494245,1780164641000,-152.0,0.0002,2]
[423494230,1780164641000,-523.0,0.00017591,2]
[423494200,1780164641000,-150.0,0.00015151,2]
[423494227,1780164641000,-1600.0,0.00016809,2]
[423494204,1780164641000,-150.0,0.00015151,2]
[423494199,1780164641000,-150.0,0.00015151,2]
[423494202,1780164641000,-150.0,0.00015151,2]
[423494206,1780164641000,-166.43,0.00015421,2]
[423494207,1780164641000,-2000.0,0.00015442,2]
[423494205,1780164641000,-1600.0,0.00015409,2]
[423494208,1780164641000,-215.58360558,0.00015606,2]
[423494258,1780164641000,-151.0,0.00020103,2]
[423494209,1780164641000,-163.06,0.00015675,2]
[423494213,1780164641000,-207.11562252,0.00016073,2]
[423494211,1780164641000,-300.0,0.00016,2]
[423494212,1780164641000,-840.36,0.00016072,2]
[423494216,1780164641000,-10298.19396019,0.00016283,2]
[423494210,1780164641000,-533.14,0.00015989,2]
[423494215,1780164641000,-166.43,0.0001627,2]
[423494214,1780164641000,-1252.0,0.00016076,2]
[423494228,1780164641000,-2000.0,0.00016846,2]
[423494226,1780164641000,-163.06,0.00016795,2]
[423494225,1780164641000,-157.92481882,0.00016745,2]
[423494223,1780164641000,-159.76948037,0.00016438,30]
[423494224,1780164641000,-153.27997121,0.00016745,2]
[423494222,1780164641000,-159.76948037,0.00016438,30]
[423494220,1780164641000,-159.76948037,0.00016438,30]
[423494218,1780164641000,-4609.0,0.00016436,2]
[423494219,1780164641000,-156.1,0.00016438,2]
[423494217,1780164641000,-1152.0,0.00016355,2]
[423494221,1780164641000,-159.76948037,0.00016438,30]
[423494297,1780164642000,-329.0,0.00022,2]
[423494301,1780164642000,-184.0,0.00022,2]
[423494298,1780164642000,-360.0,0.00022,2]
[423494292,1780164642000,-1594.97,0.0002175,2]
[423494295,1780164642000,-209.0,0.00022,2]
[423494291,1780164642000,-477.29,0.00021517,2]
[423494296,1780164642000,-215.0,0.00022,2]
[423494293,1780164642000,-5000.0,0.00021918,2]
[423494290,1780164642000,-480.0,0.00021517,2]
[423494289,1780164642000,-166.66,0.0002151,2]
[423494294,1780164642000,-166.66,0.00021963,30]
[423494299,1780164642000,-154.0,0.00022,2]
[423494313,1780164642000,-215.0,0.00023,2]
[423494302,1780164642000,-450.0,0.00022,2]
[423494303,1780164642000,-707.43829241,0.00022041,2]
[423494306,1780164642000,-480.00199776,0.00022593,2]
[423494309,1780164642000,-166.66,0.00022869,30]
[423494308,1780164642000,-13345.59120549,0.00022712,2]
[423494310,1780164642000,-163.28,0.000229,7]
[423494304,1780164642000,-156.1,0.00022353,2]
[423494307,1780164642000,-477.29,0.00022593,2]
[423494311,1780164642000,-2318.0,0.00022978,3]
[423494305,1780164642000,-166.66,0.00022416,30]
[423494312,1780164642000,-209.0,0.00023,2]
[423494314,1780164642000,-329.0,0.00023,2]
[423494288,1780164642000,-6477.09,0.0002137,2]
[423494300,1780164642000,-705.0,0.00022,2]
[423494287,1780164642000,-10000.0,0.00021285,2]
[423494268,1780164642000,-151.0,0.00020103,2]
[423494285,1780164642000,-400.57,0.00021273,2]
[423494316,1780164642000,-154.0,0.00023,2]
[423494259,1780164642000,-151.0,0.00020103,2]
[423494260,1780164642000,-151.0,0.00020103,2]
[423494261,1780164642000,-151.0,0.00020103,2]
[423494264,1780164642000,-151.0,0.00020103,2]
[423494263,1780164642000,-151.0,0.00020103,2]
[423494262,1780164642000,-151.0,0.00020103,2]
[423494265,1780164642000,-151.0,0.00020103,2]
[423494266,1780164642000,-151.0,0.00020103,2]
[423494267,1780164642000,-151.0,0.00020103,2]
[423494270,1780164642000,-151.0,0.00020103,2]
[423494269,1780164642000,-151.0,0.00020103,2]
[423494286,1780164642000,-6094.37,0.00021273,2]
[423494272,1780164642000,-151.0,0.00020103,2]
[423494273,1780164642000,-151.0,0.00020103,2]